lending/lending_fUSD_20251124
["ID","MTS","AMOUNT","RATE_DAILY","PERIOD"]
[394858074,1764024643968,-300.0,0.00023574,2]
[394858075,1764024643977,-1000.0,0.00023596,2]
[394858076,1764024643986,-1000.0,0.00023623,2]
[394858077,1764024643995,-1000.0,0.00023631,2]
[394858078,1764024644005,-1000.0,0.00023704,2]
[394858079,1764024644014,-1000.0,0.00023734,2]
[394858080,1764024644023,-300.0,0.00023743,2]
[394858081,1764024644032,-1000.0,0.00023756,2]
[394858082,1764024644042,-150.0,0.00023791,2]
[394858083,1764024644052,-1043.0633369,0.00023821,2]
[394858084,1764024644062,-300.0,0.00023828,2]
[394858085,1764024644071,-300.0,0.00023828,2]
[394858086,1764024644080,-150.0,0.00023847,2]
[394858087,1764024644089,-300.0,0.00023848,2]
[394858088,1764024644098,-426.8933355,0.00023874,2]
[394858089,1764024644107,-300.0,0.00023914,2]
[394858090,1764024644117,-300.0,0.00023949,2]
[394858091,1764024644126,-997.60842212,0.00023961,2]
[394858092,1764024644135,-1000.0,0.00023969,2]
[394858093,1764024644145,-300.0,0.00023981,2]
[394858094,1764024644157,-1000.0,0.00023994,2]
[394858095,1764024644168,-162.138015,0.00023994,7]
[394858096,1764024644176,-151.0,0.00023994,7]
[394858097,1764024644188,-151.0,0.00023994,7]
[394858098,1764024644199,-156.00165685,0.00023996,2]
[394858099,1764024644208,-1045.76649187,0.00024,14]
[394858100,1764024644218,-6041.56,0.00024,7]
[394858101,1764024644228,-300.0,0.00024024,2]
[394858102,1764024644238,-300.0,0.00024052,2]
[394858103,1764024644247,-300.0,0.00024054,2]
[394858104,1764024644256,-1613.0,0.00024091,2]
[394858105,1764024644266,-300.0,0.00024104,2]
[394858106,1764024644275,-4871.0,0.00024117,2]
[394858107,1764024644284,-576.0,0.00024164,2]
[394858108,1764024644293,-1320.0,0.00024164,2]
[394858109,1764024644303,-611.666,0.00024164,2]
[394858110,1764024644312,-3437.0,0.00024164,2]
[394858111,1764024644322,-822.0,0.00024164,2]
[394858112,1764024644331,-1601.0,0.00024164,2]
[394858113,1764024644342,-659.0,0.00024164,2]
[394858114,1764024644352,-1256.0,0.00024164,2]
[394858115,1764024644362,-561.0,0.00024164,2]
[394858116,1764024644372,-151.0,0.00024164,2]
[394858117,1764024644382,-150.103,0.00024164,2]
[394858118,1764024644391,-150.0,0.00024164,2]
[394858119,1764024644400,-2715.0,0.00024164,2]
[394858120,1764024644410,-150.124,0.00024164,2]
[394858121,1764024644419,-6499.0,0.00024164,2]
[394858122,1764024644574,-151.355,0.00024164,2]
[394858123,1764024644585,-300.0,0.00024192,2]
[394858124,1764024644595,-300.0,0.00024196,2]
[394858125,1764024644605,-1000.0,0.00024198,2]
[394858126,1764024644614,-1000.0,0.00024212,2]
[394858127,1764024644624,-300.0,0.00024232,2]
[394858128,1764024644633,-300.0,0.00024235,2]
[394858129,1764024644644,-150.0,0.00024278,2]
[394858130,1764024644658,-300.0,0.00024299,2]
[394858131,1764024644668,-300.0,0.00024319,2]
[394858132,1764024644677,-396.68559199,0.00024328,2]
[394858133,1764024644687,-300.0,0.00024334,2]
[394858134,1764024644699,-1000.0,0.00024346,2]
[394858135,1764024644709,-179.42,0.00024358,2]
[394858136,1764024644719,-300.0,0.00024386,2]
[394858137,1764024644730,-1000.0,0.00024393,2]
[394858138,1764024644739,-314.79830118,0.00024424,2]
[394858139,1764024644749,-300.0,0.00024437,2]
[394858140,1764024644758,-200.0,0.0002446,2]
[394858141,1764024644768,-300.0,0.00024463,2]
[394858142,1764024644778,-1000.0,0.00024472,2]
[394858143,1764024644788,-844.88036399,0.00024496,2]
[394858144,1764024644797,-300.0,0.00024522,2]
[394858145,1764024644807,-300.0,0.00024526,2]
[394858146,1764024644816,-300.0,0.00024528,2]
[394858147,1764024644825,-300.0,0.00024549,2]
[394858148,1764024644835,-300.0,0.00024552,2]
[394858149,1764024644844,-300.0,0.00024553,2]
[394858150,1764024644854,-300.0,0.00024562,2]
[394858151,1764024644863,-300.0,0.00024586,2]
[394858152,1764024644872,-1000.0,0.0002459,2]
[394858153,1764024644883,-300.0,0.00024597,2]
[394858154,1764024644892,-300.0,0.00024599,2]
[394858155,1764024644902,-300.0,0.00024603,2]
[394858156,1764024644911,-300.0,0.00024618,2]
[394858157,1764024644921,-300.0,0.00024621,2]
[394858158,1764024644931,-300.0,0.00024631,2]
[394858159,1764024644941,-300.0,0.00024646,2]
[394858160,1764024644950,-593.0205481,0.0002465,2]
[394858161,1764024644960,-1000.0,0.00024658,2]
[394858162,1764024644969,-151.0,0.00024658,7]
[394858163,1764024644979,-151.0,0.00024658,7]
[394858164,1764024644988,-251.386108,0.00024658,7]
[394858165,1764024644999,-151.0,0.00024658,7]
[394858166,1764024645008,-160.880663,0.00024658,7]
[394858167,1764024645018,-151.0,0.00024658,7]
[394858168,1764024645027,-151.0,0.00024658,7]
[394858169,1764024645037,-151.0,0.00024658,7]
[394858170,1764024645047,-151.0,0.00024658,7]
[394858171,1764024645056,-151.0,0.00024658,7]
[394858172,1764024645066,-151.0,0.00024658,7]
[394858173,1764024645076,-151.0,0.00024658,7]
[394858174,1764024645085,-151.0,0.00024658,7]
[394858175,1764024645095,-151.0,0.00024658,7]
[394858176,1764024645105,-151.0,0.00024658,7]
[394858177,1764024645114,-163.619159,0.00024658,7]
[394858178,1764024645124,-152.766717,0.00024658,7]
[394858179,1764024645134,-151.0,0.00024658,7]
[394858180,1764024645143,-151.0,0.00024658,7]
[394858181,1764024645152,-154.618341,0.00024658,7]
[394858182,1764024645163,-151.0,0.00024658,7]
[394858183,1764024645172,-151.0,0.00024658,7]
[394858184,1764024645182,-151.0,0.00024658,7]
[394858185,1764024645191,-157.475107,0.00024658,7]
[394858186,1764024645200,-156.85861,0.00024658,7]
[394858187,1764024645211,-151.0,0.00024658,7]
[394858188,1764024645221,-151.0,0.00024658,7]
[394858189,1764024645230,-151.0,0.00024658,7]
[394858190,1764024645239,-151.0,0.00024658,7]
[394858191,1764024645248,-151.0,0.00024658,7]
[394858192,1764024645257,-248.652686,0.00024658,7]
[394858193,1764024645267,-151.0,0.00024658,7]
[394858194,1764024645277,-151.0,0.00024658,7]
[394858195,1764024645286,-151.0,0.00024658,7]
[394858196,1764024645295,-151.0,0.00024658,7]
[394858197,1764024645306,-151.0,0.00024658,7]
[394858198,1764024645316,-151.0,0.00024658,7]
[394858199,1764024645325,-151.0,0.00024658,7]
[394858200,1764024645335,-151.0,0.00024658,7]
[394858201,1764024645344,-151.0,0.00024658,7]
[394858202,1764024645354,-151.0,0.00024658,7]
[394858203,1764024645363,-151.0,0.00024658,7]
[394858204,1764024645372,-151.0,0.00024658,7]
[394858205,1764024645382,-151.0,0.00024658,7]
[394858206,1764024645391,-151.0,0.00024658,7]
[394858207,1764024645401,-151.0,0.00024658,7]
[394858208,1764024645411,-155.779725,0.00024658,7]
[394858209,1764024645421,-151.0,0.00024658,7]
[394858210,1764024645431,-151.0,0.00024658,7]
[394858211,1764024645440,-151.0,0.00024658,7]
[394858212,1764024645448,-151.466997,0.00024658,7]
[394858213,1764024645458,-151.0,0.00024658,7]
[394858214,1764024645468,-151.0,0.00024658,7]
[394858215,1764024645477,-151.0,0.00024658,7]
[394858216,1764024645486,-151.0,0.00024658,7]
[394858217,1764024645495,-151.0,0.00024658,7]
[394858218,1764024645504,-151.0,0.00024658,7]
[394858219,1764024645512,-151.0,0.00024658,7]
[394858220,1764024645521,-151.0,0.00024658,7]
[394858221,1764024645530,-243.793028,0.00024658,7]
[394858222,1764024645539,-151.0,0.00024658,7]
[394858223,1764024645547,-161.866969,0.00024658,7]
[394858224,1764024645556,-152.339965,0.00024658,7]
[394858225,1764024645565,-151.0,0.00024658,7]
[394858226,1764024645574,-151.84249,0.00024658,7]
[394858227,1764024645584,-151.0,0.00024658,7]
[394858228,1764024645593,-151.0,0.00024658,7]
[394858229,1764024645602,-154.610112,0.00024658,7]
[394858230,1764024645610,-151.0,0.00024658,7]
[394858231,1764024645620,-151.0,0.00024658,7]
[394858233,1764024645629,-151.0,0.00024658,7]
[394858234,1764024645638,-151.0,0.00024658,7]
[394858235,1764024645652,-151.0,0.00024658,7]
[394858236,1764024645661,-151.0,0.00024658,7]
[394858237,1764024645671,-151.0,0.00024658,7]
[394858238,1764024645680,-151.0,0.00024658,7]
[394858239,1764024645690,-271.795498,0.00024658,7]
[394858240,1764024645700,-151.0,0.00024658,7]
[394858241,1764024645711,-151.0,0.00024658,7]
[394858242,1764024645722,-170.735023,0.00024658,7]
[394858243,1764024645732,-151.0,0.00024658,7]
[394858244,1764024645741,-151.0,0.00024658,7]
[394858245,1764024645750,-274.02048,0.00024658,7]
[394858246,1764024645759,-157.74505,0.00024658,7]
[394858247,1764024645769,-151.0,0.00024658,7]
[394858248,1764024645778,-164.248103,0.00024658,7]
[394858249,1764024645788,-151.0,0.00024658,7]
[394858250,1764024645797,-151.0,0.00024658,7]
[394858251,1764024645807,-151.0,0.00024658,7]
[394858252,1764024645816,-151.0,0.00024658,7]
[394858253,1764024645826,-151.0,0.00024658,7]
[394858254,1764024645837,-151.0,0.00024658,7]
[394858255,1764024645847,-151.0,0.00024658,7]
[394858256,1764024645857,-160.845747,0.00024658,7]
[394858257,1764024645868,-178.674323,0.00024658,7]
[394858258,1764024645879,-440.243655,0.00024658,7]
[394858259,1764024645888,-440.243655,0.00024658,7]
[394858260,1764024645899,-440.243655,0.00024658,7]
[394858261,1764024645909,-440.243655,0.00024658,7]
[394858262,1764024645918,-440.243655,0.00024658,7]
[394858263,1764024645928,-440.243655,0.00024658,7]
[394858264,1764024645937,-440.243655,0.00024658,7]
[394858265,1764024645947,-440.243655,0.00024658,7]
[394858266,1764024645957,-440.243655,0.00024658,7]
[394858267,1764024645967,-440.243655,0.00024658,7]
[394858268,1764024645976,-440.243655,0.00024658,7]
[394858269,1764024645985,-440.243655,0.00024658,7]
[394858270,1764024645994,-151.0,0.00024658,7]
[394858271,1764024646003,-151.0,0.00024658,7]
[394858272,1764024646013,-259.841727,0.00024658,7]
[394858273,1764024646022,-151.0,0.00024658,7]
[394858274,1764024646032,-151.0,0.00024658,7]
[394858275,1764024646042,-151.0,0.00024658,7]
[394858277,1764024646051,-151.0,0.00024658,7]
[394858278,1764024646061,-151.0,0.00024658,7]
[394858279,1764024646070,-151.0,0.00024658,7]
[394858280,1764024646079,-151.0,0.00024658,7]
[394858281,1764024646089,-160.243049,0.00024658,7]
[394858282,1764024646098,-151.378803,0.00024658,7]
[394858283,1764024646108,-151.378803,0.00024658,7]
[394858284,1764024646117,-151.378803,0.00024658,7]
[394858285,1764024646127,-151.378803,0.00024658,7]
[394858286,1764024646137,-151.378803,0.00024658,7]
[394858287,1764024646147,-151.378803,0.00024658,7]
[394858288,1764024646156,-151.378803,0.00024658,7]
[394858289,1764024646165,-151.378803,0.00024658,7]
[394858290,1764024646175,-151.378803,0.00024658,7]
[394858291,1764024646184,-151.378803,0.00024658,7]
[394858292,1764024646195,-151.378803,0.00024658,7]
[394858293,1764024646204,-151.378803,0.00024658,7]
[394858294,1764024646214,-151.378803,0.00024658,7]
[394858295,1764024646224,-151.378803,0.00024658,7]
[394858296,1764024646234,-151.378803,0.00024658,7]
[394858297,1764024646245,-151.378803,0.00024658,7]
[394858298,1764024646255,-151.0,0.00024658,7]
[394858299,1764024646266,-151.0,0.00024658,7]
[394858300,1764024646275,-151.0,0.00024658,7]
[394858301,1764024646284,-151.0,0.00024658,7]
[394858302,1764024646295,-151.0,0.00024658,7]
[394858303,1764024646303,-151.0,0.00024658,7]
[394858304,1764024646313,-151.0,0.00024658,7]
[394858305,1764024646322,-151.0,0.00024658,7]
[394858306,1764024646332,-227.386626,0.00024658,7]
[394858307,1764024646347,-285.365221,0.00024658,7]
[394858308,1764024646356,-285.365221,0.00024658,7]
[394858309,1764024646366,-285.365221,0.00024658,7]
[394858310,1764024646375,-285.365221,0.00024658,7]
[394858311,1764024646384,-285.365221,0.00024658,7]
[394858312,1764024646394,-285.365221,0.00024658,7]
[394858313,1764024646403,-285.365221,0.00024658,7]
[394858314,1764024646413,-285.365221,0.00024658,7]
[394858315,1764024646422,-285.365221,0.00024658,7]
[394858316,1764024646432,-151.0,0.00024658,7]
[394858317,1764024646441,-285.365221,0.00024658,7]
[394858318,1764024646451,-285.365221,0.00024658,7]
[394858319,1764024646461,-151.0,0.00024658,7]
[394858320,1764024646470,-285.365221,0.00024658,7]
[394858321,1764024646479,-285.365221,0.00024658,7]
[394858322,1764024646489,-285.365221,0.00024658,7]
[394858323,1764024646499,-285.365221,0.00024658,7]
[394858324,1764024646508,-285.365221,0.00024658,7]
[394858325,1764024646517,-151.0,0.00024658,7]
[394858326,1764024646526,-151.0,0.00024658,7]
[394858330,1764024646536,-151.0,0.00024658,7]
[394858333,1764024646545,-151.0,0.00024658,7]
[394858335,1764024646555,-151.0,0.00024658,7]
[394858337,1764024646564,-151.0,0.00024658,7]
[394858339,1764024646574,-151.0,0.00024658,7]
[394858340,1764024646583,-156.455003,0.00024658,7]
[394858341,1764024646592,-151.0,0.00024658,7]
[394858342,1764024646602,-151.0,0.00024658,7]
[394858344,1764024646612,-151.0,0.00024658,7]
[394858346,1764024646622,-151.0,0.00024658,7]
[394858348,1764024646631,-246.19281,0.00024658,7]
[394858349,1764024646641,-151.0,0.00024658,7]
[394858350,1764024646655,-151.0,0.00024658,7]
[394858351,1764024646664,-151.0,0.00024658,7]
[394858352,1764024646674,-151.0,0.00024658,7]
[394858353,1764024646683,-151.0,0.00024658,7]
[394858354,1764024646694,-151.0,0.00024658,7]
[394858355,1764024646703,-151.0,0.00024658,7]
[394858356,1764024646713,-154.715011,0.00024658,7]
[394858357,1764024646723,-151.0,0.00024658,7]
[394858358,1764024646733,-259.954531,0.00024658,7]
[394858359,1764024646742,-151.0,0.00024658,7]
[394858360,1764024646752,-154.808306,0.00024658,7]
[394858361,1764024646761,-151.0,0.00024658,7]
[394858362,1764024646771,-157.865048,0.00024658,7]
[394858363,1764024646780,-151.0,0.00024658,7]
[394858364,1764024646789,-151.0,0.00024658,7]
[394858365,1764024646798,-151.0,0.00024658,7]
[394858366,1764024646808,-151.0,0.00024658,7]
[394858367,1764024646817,-151.0,0.00024658,7]
[394858368,1764024646826,-151.0,0.00024658,7]
[394858369,1764024646835,-151.0,0.00024658,7]
[394858370,1764024646843,-151.0,0.00024658,7]
[394858371,1764024646852,-151.0,0.00024658,7]
[394858372,1764024646862,-151.0,0.00024658,7]
[394858373,1764024646871,-151.0,0.00024658,7]
[394858374,1764024646880,-151.0,0.00024658,7]
[394858375,1764024646890,-282.0287,0.00024658,7]
[394858376,1764024646899,-151.0,0.00024658,7]
[394858377,1764024646908,-151.0,0.00024658,7]
[394858378,1764024646917,-151.0,0.00024658,7]
[394858379,1764024646927,-153.273793,0.00024658,7]
[394858380,1764024646936,-259.692237,0.00024658,7]
[394858381,1764024646945,-151.0,0.00024658,7]
[394858382,1764024646955,-169.689645,0.00024658,7]
[394858383,1764024646964,-499.7485,0.00024658,7]
[394858384,1764024646974,-499.7485,0.00024658,7]
[394858385,1764024646983,-499.7485,0.00024658,7]
[394858386,1764024646992,-499.7485,0.00024658,7]
[394858387,1764024647001,-151.0,0.00024658,7]
[394858388,1764024647010,-499.7485,0.00024658,7]
[394858389,1764024647019,-286.927602,0.00024658,7]
[394858390,1764024647029,-499.7485,0.00024658,7]
[394858391,1764024647038,-499.7485,0.00024658,7]
[394858392,1764024647047,-499.7485,0.00024658,7]
[394858393,1764024647056,-499.7485,0.00024658,7]
[394858394,1764024647065,-499.7485,0.00024658,7]
[394858395,1764024647074,-499.7485,0.00024658,7]
[394858396,1764024647087,-499.7485,0.00024658,7]
[394858397,1764024647096,-499.7485,0.00024658,7]
[394858398,1764024647105,-499.7485,0.00024658,7]
[394858399,1764024647114,-499.7485,0.00024658,7]
[394858400,1764024647123,-499.7485,0.00024658,7]
[394858401,1764024647132,-151.0,0.00024658,7]
[394858402,1764024647141,-151.0,0.00024658,7]
[394858403,1764024647151,-151.0,0.00024658,7]
[394858404,1764024647160,-151.0,0.00024658,7]
[394858405,1764024647170,-151.0,0.00024658,7]
[394858406,1764024647179,-268.792532,0.00024658,7]
[394858407,1764024647188,-151.0,0.00024658,7]
[394858408,1764024647199,-151.0,0.00024658,7]
[394858409,1764024647208,-151.0,0.00024658,7]
[394858410,1764024647217,-151.0,0.00024658,7]
[394858411,1764024647227,-151.0,0.00024658,7]
[394858412,1764024647235,-262.922461,0.00024658,7]
[394858413,1764024647244,-153.648457,0.00024658,7]
[394858414,1764024647254,-151.0,0.00024658,7]
[394858415,1764024647263,-151.0,0.00024658,7]
[394858416,1764024647273,-151.0,0.00024658,7]
[394858417,1764024647282,-151.0,0.00024658,7]
[394858418,1764024647292,-151.0,0.00024658,7]
[394858419,1764024647301,-151.0,0.00024658,7]
[394858420,1764024647311,-159.711177,0.00024658,7]
[394858421,1764024647319,-151.0,0.00024658,7]
[394858422,1764024647329,-151.0,0.00024658,7]
[394858423,1764024647338,-151.430441,0.00024658,7]
[394858424,1764024647347,-164.16383,0.00024658,7]
[394858425,1764024647355,-151.0,0.00024658,7]
[394858426,1764024647364,-151.0,0.00024658,7]
[394858427,1764024647376,-245.8898,0.00024658,7]
[394858428,1764024647386,-158.241911,0.00024658,7]
[394858429,1764024647396,-151.0,0.00024658,7]
[394858430,1764024647405,-154.926952,0.00024658,7]
[394858431,1764024647414,-151.0,0.00024658,2]
[394858432,1764024647425,-300.0,0.00024681,2]
[394858433,1764024647435,-6453.0,0.00024705,2]
[394858434,1764024647446,-300.0,0.0002471,2]
[394858435,1764024647458,-300.0,0.00024719,2]
[394858436,1764024647468,-1000.0,0.0002475,2]
[394858437,1764024647478,-470.82570326,0.00024799,10]
[394858438,1764024647487,-2576.53078901,0.000248,2]
[394858439,1764024647497,-211.479872,0.000248,7]
[394858440,1764024647506,-158.058753,0.000248,7]
[394858441,1764024647628,-191.393216,0.000248,7]
[394858442,1764024647658,-151.0,0.000248,7]
[394858443,1764024647668,-151.0,0.000248,7]
[394858444,1764024647677,-297.754834,0.000248,7]
[394858445,1764024647686,-151.0,0.000248,7]
[394858446,1764024647696,-159.922793,0.000248,7]
[394858447,1764024647706,-151.0,0.000248,7]
[394858448,1764024647716,-151.0,0.000248,7]
[394858449,1764024647727,-151.0,0.000248,7]
[394858450,1764024647736,-151.0,0.000248,7]
[394858451,1764024647745,-151.0,0.000248,7]
[394858452,1764024647754,-151.0,0.000248,7]
[394858453,1764024647763,-151.0,0.000248,7]
[394858454,1764024647772,-151.0,0.000248,7]
[394858455,1764024647781,-151.0,0.000248,7]
[394858456,1764024647790,-151.0,0.000248,7]
[394858457,1764024647799,-225319.218557,0.000248,3]
[394858458,1764024647808,-284.782803,0.000248,7]
[394858459,1764024647818,-153.877928,0.000248,7]
[394858460,1764024647827,-151.0,0.000248,7]
[394858461,1764024647836,-151.0,0.000248,7]
[394858462,1764024647845,-218.86851,0.000248,7]
[394858463,1764024647855,-499.7485,0.000248,7]
[394858464,1764024647864,-499.7485,0.000248,7]
[394858465,1764024647873,-499.7485,0.000248,7]
[394858466,1764024647882,-499.7485,0.000248,7]
[394858467,1764024647891,-7019.24730232,0.00024868,2]
[394858468,1764024647900,-181.8,0.00024894,2]
[394858469,1764024647909,-166.82,0.0002492,2]
[394858470,1764024647918,-164.52017283,0.00025,5]
[394858471,1764024647927,-450.0,0.00025,2]
[394858472,1764024647937,-1103.38717415,0.00025,2]
[394858473,1764024647946,-205.57625643,0.00025,2]
[394858474,1764024647955,-1768.07273952,0.00025,2]
[394858475,1764024647964,-196.50261051,0.00025,2]
[394858476,1764024647974,-360.0,0.00025,2]
[394858477,1764024647983,-3015.57265388,0.00025,2]
[394858478,1764024647991,-151.0,0.00025,7]
[394858479,1764024648000,-151.0,0.00025,7]
[394858480,1764024648010,-151.0,0.00025,7]
[394858481,1764024648019,-603.0,0.0002538,2]
[394858482,1764024648028,-236.50360115,0.00025398,2]
[394858483,1764024648037,-6041.56,0.000255,7]
[394858484,1764024648046,-2835.21,0.00025786,2]
[394858485,1764024648055,-9999.99,0.00025786,2]
[394858486,1764024648065,-2238.08,0.00025786,2]
[394858487,1764024648074,-2000.0,0.000258,2]
[394858488,1764024648084,-1000.0,0.000259,2]
[394858489,1764024648093,-4481.72774446,0.00026,2]
[394858490,1764024648102,-158.19,0.00026116,120]
[394858491,1764024648111,-158.19,0.00026145,120]
[394858492,1764024648120,-150.0,0.00026167,2]
[394858493,1764024648130,-150.0,0.00026167,2]
[394858494,1764024648139,-150.0,0.00026167,2]
[394858495,1764024648148,-150.0,0.00026167,2]
[394858496,1764024648158,-150.0,0.00026167,2]
[394858497,1764024648166,-150.0,0.00026167,2]
[394858499,1764024648175,-150.0,0.00026167,2]
[394858500,1764024648184,-150.0,0.00026167,2]
[394858501,1764024648193,-150.0,0.00026167,2]
[394858502,1764024648203,-150.0,0.00026167,2]
[394858503,1764024648212,-150.0,0.00026167,2]
[394858504,1764024648221,-150.0,0.00026167,2]
[394858505,1764024648230,-150.0,0.00026167,2]
[394858506,1764024648239,-150.0,0.00026167,2]
[394858507,1764024648248,-150.0,0.00026167,2]
[394858508,1764024648257,-150.0,0.00026167,2]
[394858509,1764024648267,-150.0,0.00026167,2]
[394858510,1764024648275,-150.0,0.00026167,2]
[394858511,1764024648285,-150.0,0.00026167,2]
[394858512,1764024648293,-150.0,0.00026167,2]
[394858513,1764024648303,-150.0,0.00026167,2]
[394858514,1764024648311,-150.0,0.00026167,2]
[394858515,1764024648321,-234.75,0.00026167,2]
[394858516,1764024648330,-158.19,0.00026175,120]
[394858517,1764024648339,-158.19,0.00026207,120]
[394858518,1764024648348,-158.19,0.00026241,120]
[394858519,1764024648356,-158.19,0.00026277,120]
[394858520,1764024648366,-158.19,0.00026355,120]
[394858521,1764024648375,-2258.0,0.00026356,2]
[394858522,1764024648383,-158.19,0.00026398,120]
[394858523,1764024648392,-158.19,0.00026444,120]
[394858524,1764024648402,-158.19,0.00026494,120]
[394858525,1764024648411,-158.19,0.00026548,120]
[394858526,1764024648420,-158.19,0.00026607,120]
[394858527,1764024648429,-158.19,0.00026673,120]
[394858528,1764024648438,-501.93,0.00026676,2]
[394858529,1764024648447,-1000.0,0.000267,2]
[394858530,1764024648456,-158.19,0.00026746,120]
[394858531,1764024648465,-158.19,0.0002683,120]
[394858532,1764024648474,-158.19,0.00026926,120]
[394858533,1764024648483,-500.0,0.00027,2]
[394858534,1764024648492,-158.19,0.0002704,120]
[394858535,1764024648501,-3651.7,0.00027123,2]
[394858536,1764024648511,-8109.0,0.00027164,2]
[394858537,1764024648519,-576.0,0.00027164,2]
[394858538,1764024648529,-1320.0,0.00027164,2]
[394858539,1764024648538,-609.0,0.00027164,2]
[394858540,1764024648547,-3437.0,0.00027164,2]
[394858541,1764024648557,-822.0,0.00027164,2]
[394858542,1764024648565,-1601.0,0.00027164,2]
[394858543,1764024648575,-659.0,0.00027164,2]
[394858544,1764024648584,-1256.0,0.00027164,2]
[394858545,1764024648593,-561.0,0.00027164,2]
[394858546,1764024648602,-150.0,0.00027164,2]
[394858547,1764024648610,-2715.0,0.00027164,2]
[394858548,1764024648619,-6499.0,0.00027164,2]
[394858549,1764024648629,-158.19,0.00027179,120]
[394858550,1764024648638,-177.64,0.0002726,2]
[394858551,1764024648649,-417.48,0.0002726,2]
[394858552,1764024648658,-558.18,0.0002726,2]
[394858553,1764024648668,-177.64,0.0002726,2]
[394858554,1764024648677,-174.73,0.0002726,2]
[394858555,1764024648687,-551.17,0.0002726,2]
[394858556,1764024648696,-417.48,0.0002726,2]
[394858557,1764024648705,-169.75,0.0002726,2]
[394858558,1764024648715,-688.46,0.0002726,2]
[394858559,1764024648726,-357.93,0.0002726,2]
[394858560,1764024648735,-551.17,0.0002726,2]
[394858561,1764024648743,-424.71,0.0002726,2]
[394858562,1764024648752,-169.75,0.0002726,2]
[394858563,1764024648761,-417.48,0.0002726,2]
[394858564,1764024648771,-551.17,0.0002726,2]
[394858565,1764024648779,-177.64,0.0002726,2]
[394858566,1764024648788,-1102.34,0.0002726,2]
[394858567,1764024648797,-169.75,0.0002726,2]
[394858568,1764024648806,-177.64,0.0002726,2]
[394858569,1764024648815,-417.48,0.0002726,2]
[394858570,1764024648825,-551.17,0.0002726,2]
[394858571,1764024648834,-169.75,0.0002726,2]
[394858572,1764024648843,-355.28,0.0002726,2]
[394858573,1764024648852,-339.5,0.0002726,2]
[394858574,1764024648861,-551.17,0.0002726,2]
[394858575,1764024648869,-551.17,0.0002726,2]
[394858576,1764024648879,-834.96,0.00027305,2]
[394858577,1764024648888,-417.48,0.00027305,2]
[394858578,1764024648900,-177.64,0.00027305,2]
[394858579,1764024648909,-177.64,0.00027305,2]
[394858580,1764024648918,-169.75,0.00027305,2]
[394858581,1764024648927,-417.48,0.00027305,2]
[394858582,1764024648936,-169.75,0.00027305,2]
[394858583,1764024648946,-417.48,0.00027305,2]
[394858584,1764024648955,-177.64,0.00027305,2]
[394858585,1764024648965,-158.19,0.00027359,120]
[394858586,1764024648974,-150.0,0.00027369,2]
[394858587,1764024648983,-1320.4301677,0.0002739,2]